bitfinex/quotes_BTCUSD_20250123
["timestamp","ask_amount","ask_price","bid_price","bid_amount"]
[1737644574476,0.15,105370.0,105360.0,0.114912]
[1737644574683,0.04014924,105380.0,105370.0,0.094903]
[1737644574893,0.04014924,105380.0,105360.0,0.94932]
[1737644575195,0.04014924,105380.0,105370.0,0.094903]
[1737644575405,0.23239053,105380.0,105360.0,1.139135]
[1737644575630,0.32729453,105380.0,105360.0,0.854414]
[1737644575831,0.32729453,105380.0,105370.0,0.094903]
[1737644575832,0.04014924,105380.0,105370.0,0.094903]
[1737644576032,0.15,105370.0,105360.0,0.02]
[1737644576249,0.36225029,105370.0,105360.0,0.02]
[1737644576630,0.294903,105370.0,105360.0,0.02]
[1737644577180,0.39225029,105370.0,105360.0,0.02]
[1737644577388,0.244903,105370.0,105360.0,0.114912]
[1737644577798,0.34225029,105370.0,105360.0,0.02]
[1737644578191,0.244903,105370.0,105360.0,0.114912]
[1737644578394,0.34225029,105370.0,105360.0,0.02]
[1737644578803,0.67955724,105380.0,105360.0,0.02]
[1737644578804,0.04014924,105380.0,105360.0,0.0694577]
[1737644579221,0.23239053,105380.0,105370.0,0.094903]
[1737644579392,0.13749653,105380.0,105370.0,0.094903]
[1737644579567,0.04014924,105380.0,105370.0,0.094903]
[1737644580383,0.44218753,105380.0,105360.0,0.854417]
[1737644580736,0.66142373,105370.0,105360.0,0.02]
[1737644580942,0.02,105350.0,105340.0,0.01029862]
[1737644581124,0.66444173,105350.0,105340.0,0.01029862]
[1737644581330,0.56652073,105350.0,105340.0,0.01029862]
[1737644581533,0.24734729,105350.0,105340.0,0.01029862]
[1737644581740,0.15,105350.0,105340.0,0.10522862]
[1737644581920,0.24734729,105350.0,105340.0,0.10522862]
[1737644582222,0.41226829,105350.0,105340.0,0.01029862]
[1737644582364,0.34226829,105350.0,105340.0,0.01029862]
[1737644582765,0.244921,105350.0,105340.0,0.01029862]
[1737644582970,0.15,105350.0,105340.0,0.01029862]
[1737644583427,0.24734729,105350.0,105340.0,0.01029862]
[1737644583574,0.34226829,105350.0,105340.0,0.01029862]
[1737644583792,0.39226829,105350.0,105340.0,0.01029862]
[1737644584336,0.34226829,105350.0,105340.0,0.01029862]
[1737644584534,0.73878902,105350.0,105340.0,0.01029862]
[1737644584739,0.81904902,105350.0,105340.0,0.01029862]
[1737644585105,0.95737702,105350.0,105340.0,0.00251827]
[1737644585336,0.95737702,105350.0,105290.0,0.00029862]
[1737644585337,0.244966,105300.0,105290.0,0.00029862]
[1737644585539,0.39231329,105300.0,105290.0,0.00029862]
[1737644585948,0.24734729,105300.0,105290.0,0.09527362]
[1737644586146,0.1899,105320.0,105300.0,0.094965]
[1737644586369,0.09734729,105320.0,105310.0,0.094957]
[1737644586926,0.34229529,105320.0,105310.0,0.09545567]
[1737644587040,0.15,105320.0,105310.0,0.09545567]
[1737644587248,0.189871,105340.0,105320.0,0.094943]
[1737644587447,0.38214329,105340.0,105320.0,0.189893]
[1737644587649,0.28720929,105340.0,105310.0,0.93000467]
[1737644587852,0.28720929,105340.0,105320.0,0.284837]
[1737644587853,0.15,105330.0,105320.0,0.284837]
[1737644588052,0.34228629,105330.0,105310.0,1.02495367]
[1737644588328,0.094948,105320.0,105310.0,0.00049867]
[1737644588488,0.24734729,105330.0,105310.0,0.38032167]
[1737644588686,0.15,105330.0,105320.0,0.094948]
[1737644588899,0.379702,105350.0,105320.0,0.094948]
[1737644588900,0.284768,105350.0,105330.0,0.094938]
[1737644589095,0.094914,105360.0,105340.0,0.284774]
[1737644589309,0.38208629,105360.0,105340.0,0.284771]
[1737644589497,0.57192329,105360.0,105340.0,0.094923]
[1737644589696,0.19226129,105360.0,105340.0,0.474642]
[1737644589876,0.094921,105350.0,105340.0,0.284782]
[1737644590079,0.094934,105340.0,105320.0,0.739581]
[1737644590284,0.094934,105340.0,105320.0,1.024408]
[1737644590285,0.284795,105340.0,105320.0,1.024408]
[1737644590494,0.244934,105340.0,105320.0,0.739581]
[1737644590743,0.094939,105330.0,105320.0,0.094948]
[1737644590971,0.15,105340.0,105320.0,0.189896]
[1737644591143,0.00593275,105350.0,105340.0,0.09493]
[1737644591657,0.00593275,105350.0,105340.0,0.74197729]
[1737644591886,0.04,105380.0,105370.0,0.094903]
[1737644592480,0.42204929,105380.0,105360.0,0.644611]
[1737644592635,0.15,105370.0,105360.0,0.834435]
[1737644592840,0.244903,105370.0,105360.0,0.5497]
[1737644593043,0.284771,105350.0,105330.0,0.834496]
[1737644593222,0.57197429,105350.0,105330.0,0.644638]
[1737644593427,0.34227229,105350.0,105330.0,0.5497]
[1737644593639,0.24734729,105350.0,105330.0,0.284807]
[1737644593860,0.15,105350.0,105340.0,0.09493]
[1737644594100,0.1349,105380.0,105340.0,0.739553]
[1737644594424,0.1349,105380.0,105350.0,0.28476]
[1737644594425,0.15,105360.0,105350.0,0.28476]
[1737644594620,0.094904,105370.0,105350.0,0.28476]
[1737644594819,0.04029134,105380.0,105360.0,0.189815]
[1737644595025,0.04029134,105380.0,105370.0,0.094903]
[1737644596432,0.04029134,105380.0,105360.0,0.9483493]
[1737644596633,0.04029134,105380.0,105360.0,0.9483583]
[1737644596837,0.04029134,105380.0,105360.0,0.739509]
[1737644597175,0.24491,105370.0,105350.0,0.094921]
[1737644597387,0.094912,105360.0,105350.0,0.09492]
[1737644597507,0.53207429,105370.0,105350.0,0.094921]
[1737644597707,0.53207329,105370.0,105350.0,0.284763]
[1737644597908,0.15,105370.0,105360.0,0.094912]
[1737644598151,0.04029134,105380.0,105370.0,0.094903]
[1737644598409,0.04029134,105380.0,105370.0,0.644603]
[1737644599388,0.04029134,105380.0,105370.0,0.63347208]
[1737644599600,0.04029134,105380.0,105370.0,0.73081937]
[1737644600412,0.04029134,105380.0,105370.0,0.08377208]
[1737644601451,0.04029134,105380.0,105370.0,0.18111937]
[1737644601689,0.04029134,105380.0,105370.0,0.92381937]
[1737644601909,0.00920223,105380.0,105370.0,0.97381937]
[1737644602117,0.00920223,105380.0,105370.0,0.92287365]
[1737644602326,0.00920223,105380.0,105370.0,0.74987365]
[1737644603044,0.00920223,105380.0,105370.0,0.99287365]
[1737644603301,0.00920223,105380.0,105370.0,0.92287365]
[1737644603539,0.00920223,105380.0,105370.0,0.89987365]
[1737644603783,0.00920223,105380.0,105370.0,0.74987365]
[1737644604504,0.00920223,105380.0,105370.0,0.77287365]
[1737644605467,0.00920223,105380.0,105370.0,0.74987365]
[1737644605900,0.0002421,105400.0,105390.0,0.094885]
[1737644606081,0.00033668,105400.0,105390.0,0.094885]
[1737644608229,0.00033668,105400.0,105390.0,0.19223229]
[1737644608842,0.00033668,105400.0,105390.0,0.094885]
[1737644610310,0.28496968,105400.0,105380.0,0.5497]
[1737644610460,0.094894,105380.0,105370.0,9.0]
[1737644610670,0.36224129,105380.0,105370.0,9.0]
[1737644610929,0.36224129,105380.0,105370.0,8.905095]
[1737644610930,0.58597129,105380.0,105370.0,8.905095]
[1737644611115,0.80954618,105380.0,105370.0,8.68407291]
[1737644611463,1.05780349,105380.0,105370.0,5.04455284]
[1737644611715,1.15810349,105380.0,105370.0,4.63501309]
[1737644611918,1.15810349,105380.0,105370.0,4.58855124]
[1737644612088,1.15810349,105380.0,105370.0,4.51262724]
[1737644612297,1.15810349,105380.0,105370.0,4.46596919]
[1737644612298,1.16710349,105380.0,105370.0,4.46596919]
[1737644612521,1.17610349,105380.0,105370.0,4.27672095]
[1737644612748,1.18575446,105380.0,105370.0,4.09927444]
[1737644612957,1.17675446,105380.0,105370.0,3.94694282]
[1737644613161,1.08545446,105380.0,105370.0,3.65419697]
[1737644613365,0.78545446,105380.0,105370.0,3.43074441]
[1737644613576,0.81805402,105380.0,105370.0,3.43074441]
[1737644613780,1.09182642,105380.0,105370.0,3.43074441]
[1737644613952,1.08818963,105380.0,105370.0,3.43074441]
[1737644614181,1.10822068,105380.0,105370.0,3.280101]
[1737644614325,1.21722068,105380.0,105370.0,2.8661104]
[1737644614532,1.21722068,105380.0,105370.0,0.13700114]
[1737644614744,1.21722068,105380.0,105350.0,0.00029925]
[1737644614745,0.325172,105360.0,105350.0,0.00029925]
[1737644615100,0.89779873,105360.0,105350.0,0.00029925]
[1737644615319,0.31148629,105360.0,105350.0,0.00029925]
[1737644615530,0.21225929,105360.0,105350.0,0.00029925]
[1737644616087,0.2181941,105360.0,105350.0,0.00044849]
[1737644616290,0.60668254,105360.0,105350.0,0.00044849]
[1737644616467,0.83602983,105360.0,105350.0,4.9e-07]
[1737644616670,0.244939,105330.0,105320.0,0.00029841]
[1737644616871,0.34228629,105330.0,105320.0,0.00029841]
[1737644617074,0.46765529,105330.0,105320.0,0.00029841]
[1737644617277,0.56765529,105330.0,105320.0,0.00029841]
[1737644617481,0.66500258,105330.0,105320.0,0.00029841]
[1737644617706,0.53963358,105330.0,105320.0,0.00029841]
[1737644617907,0.36228629,105330.0,105320.0,0.00029841]
[1737644618333,0.19228629,105330.0,105320.0,0.00029841]
[1737644618509,0.24228629,105330.0,105320.0,0.00029841]
[1737644618732,0.21228629,105330.0,105320.0,0.00029841]
[1737644618910,0.47685629,105330.0,105320.0,0.00029841]
[1737644619113,0.45963358,105330.0,105320.0,4.1e-07]
[1737644619291,0.41228629,105330.0,105320.0,4.1e-07]
[1737644619495,0.39228629,105330.0,105320.0,4.1e-07]
[1737644619774,0.34228629,105330.0,105320.0,4.1e-07]
[1737644619956,0.19228629,105330.0,105320.0,4.1e-07]
[1737644620584,0.29347472,105330.0,105320.0,4.1e-07]
[1737644620774,0.44347472,105330.0,105320.0,4.1e-07]
[1737644621259,0.36228629,105330.0,105320.0,4.1e-07]
[1737644621424,0.41413944,105300.0,105290.0,3e-08]
[1737644621645,0.51148673,105300.0,105290.0,3e-08]
[1737644621782,0.64148673,105300.0,105290.0,3e-08]
[1737644621986,0.34231329,105300.0,105290.0,3e-08]
[1737644622396,0.39231329,105300.0,105290.0,3e-08]
[1737644622596,0.47482,105310.0,105290.0,3e-08]
[1737644622841,0.094966,105300.0,105290.0,0.0004987]
[1737644623041,0.34731329,105300.0,105290.0,0.0004987]
[1737644623248,0.244966,105300.0,105290.0,0.0004987]
[1737644623804,0.34231329,105300.0,105290.0,0.0004987]
[1737644624006,0.64148673,105300.0,105290.0,0.0004987]
[1737644624211,0.66148673,105300.0,105290.0,0.0004987]
[1737644625078,0.64148673,105300.0,105290.0,0.0004987]
[1737644625485,0.59415744,105280.0,105270.0,0.00029862]
[1737644625691,0.05,105260.0,105250.0,0.00029862]
[1737644625901,0.69152273,105260.0,105250.0,0.00044828]
[1737644626105,0.64152273,105260.0,105250.0,0.00044828]
[1737644626258,0.69152273,105260.0,105250.0,0.00044828]
[1737644626463,0.64152273,105260.0,105250.0,0.00044828]
[1737644626700,0.69152273,105260.0,105250.0,0.00044828]
[1737644627652,0.64152273,105260.0,105250.0,0.00044828]
[1737644627768,0.66152273,105260.0,105250.0,0.00044828]
[1737644627979,0.64152273,105260.0,105250.0,0.00044828]
[1737644628188,0.66152273,105260.0,105250.0,0.00044828]
[1737644628587,0.69152273,105260.0,105250.0,0.00044828]
[1737644628787,0.71252273,105260.0,105250.0,0.00044828]
[1737644628993,0.93410273,105260.0,105250.0,2.8e-07]
[1737644629217,0.69956273,105260.0,105250.0,2.8e-07]
[1737644629627,0.64152273,105260.0,105250.0,2.8e-07]
[1737644629823,0.34234929,105260.0,105250.0,2.8e-07]
[1737644630045,0.19234929,105260.0,105250.0,2.8e-07]
[1737644630255,0.095002,105260.0,105250.0,2.8e-07]
[1737644630440,0.094989,105280.0,105250.0,0.19001028]
[1737644630644,0.284891,105310.0,105280.0,0.284941]
[1737644630864,0.189943,105300.0,105280.0,0.5497]
[1737644631039,0.284917,105300.0,105280.0,0.094984]
[1737644631257,0.284917,105300.0,105270.0,0.92965]
[1737644631258,0.09734729,105290.0,105270.0,0.5497]
[1737644631432,0.77640873,105300.0,105270.0,0.5497]
[1737644631633,0.094984,105280.0,105270.0,0.5297]
[1737644631837,0.189915,105310.0,105270.0,0.62704729]
[1737644631838,0.189927,105310.0,105270.0,0.62704729]
[1737644632039,0.284887,105310.0,105290.0,0.284921]
[1737644632240,0.379814,105320.0,105290.0,0.379888]
[1737644632443,0.094952,105320.0,105300.0,0.284885]
[1737644632788,0.094966,105300.0,105290.0,0.5297]
[1737644632925,0.244977,105290.0,105270.0,0.11421413]
[1737644633126,0.34233129,105280.0,105270.0,0.01922613]
[1737644633380,0.2,105270.0,105240.0,0.00029904]
[1737644633614,0.245011,105250.0,105240.0,0.00044878]
[1737644633821,0.34235829,105250.0,105240.0,0.00044878]
[1737644634132,0.39235829,105250.0,105240.0,0.00044878]
[1737644634580,0.34235829,105250.0,105240.0,0.00044878]
[1737644635163,0.39235829,105250.0,105240.0,0.00044878]
[1737644635363,0.45811329,105250.0,105240.0,0.00044878]
[1737644635563,0.19235829,105250.0,105240.0,0.00044878]
[1737644635799,0.39235829,105250.0,105240.0,0.00044878]
[1737644636002,0.48970558,105250.0,105240.0,0.00044878]
[1737644636753,0.50970558,105250.0,105240.0,0.00044878]
[1737644636926,0.43970558,105250.0,105240.0,0.00044878]
[1737644637324,0.45970558,105250.0,105240.0,0.00044878]
[1737644637545,0.52264929,105250.0,105240.0,0.00044878]
[1737644637741,0.34235829,105250.0,105240.0,0.00044878]
[1737644638529,0.380038,105260.0,105240.0,0.00044878]
[1737644638733,0.094989,105280.0,105240.0,0.19048978]
[1737644638930,0.09734729,105280.0,105270.0,0.094993]
[1737644639189,0.094968,105300.0,105270.0,0.5771977]
[1737644639388,0.05,105320.0,105300.0,0.284895]
[1737644639389,0.189906,105320.0,105300.0,0.284895]
[1737644639555,0.094951,105320.0,105300.0,0.284895]
[1737644639755,0.189872,105340.0,105300.0,0.28728029]
[1737644640017,0.38215529,105340.0,105320.0,0.094947]
[1737644640219,0.189851,105350.0,105310.0,0.5297]
[1737644640519,0.284752,105360.0,105330.0,0.474677]
[1737644640655,0.41822833,105400.0,105340.0,0.284791]
[1737644640656,0.00014952,105350.0,105340.0,0.284791]
[1737644640853,0.0002421,105400.0,105340.0,0.92990829]
[1737644641060,0.00074117,105400.0,105370.0,0.094898]
[1737644641302,0.00074117,105400.0,105370.0,0.8648741]
[1737644641499,0.00074117,105400.0,105380.0,0.094893]
[1737644641911,0.00074117,105400.0,105370.0,1.15201639]
[1737644642068,0.00593073,105390.0,105380.0,0.094893]
[1737644642688,0.429374,105440.0,105390.0,0.5497]
[1737644642869,0.094858,105420.0,105390.0,1.0411216]
[1737644643070,0.09734729,105420.0,105390.0,0.8513636]
[1737644643277,0.38192329,105420.0,105390.0,0.8513636]
[1737644643633,0.28468968,105440.0,105400.0,0.189753]
[1737644643886,0.09499068,105440.0,105410.0,0.64704729]
[1737644644014,0.38201897,105440.0,105410.0,0.834298]
[1737644644219,0.38201897,105440.0,105410.0,0.75113286]
[1737644644220,0.09749697,105440.0,105410.0,0.75113286]
[1737644644426,0.09749697,105440.0,105420.0,0.094856]
[1737644644624,0.09749697,105440.0,105410.0,0.84598286]
[1737644644833,0.19233697,105440.0,105410.0,0.84598286]
[1737644645062,0.09749697,105440.0,105410.0,0.84598286]
[1737644645261,0.094858,105420.0,105410.0,0.5497]
[1737644645555,0.24734729,105430.0,105410.0,0.5497]
[1737644645762,0.24734729,105430.0,105390.0,0.02]
[1737644645965,0.24734729,105430.0,105390.0,0.094884]
[1737644645966,0.15,105410.0,105390.0,0.094884]
[1737644646139,0.15,105410.0,105390.0,0.01900667]
[1737644646349,0.0086801,105440.0,105420.0,0.094858]
[1737644646555,0.0086801,105440.0,105410.0,0.284595]
[1737644646782,0.0086801,105440.0,105410.0,0.474327]
[1737644646987,0.1586801,105440.0,105420.0,0.094858]
[1737644647179,0.1586801,105440.0,105410.0,1.024025]
[1737644647315,0.15014968,105440.0,105410.0,1.024028]
[1737644647929,0.15014968,105440.0,105410.0,0.834294]
[1737644648399,0.15014968,105440.0,105410.0,1.024028]
[1737644648599,0.00014968,105440.0,105420.0,0.28706329]
[1737644648801,0.00014968,105440.0,105430.0,0.094849]
[1737644649224,0.00014968,105440.0,105430.0,0.644549]
[1737644649422,0.00014968,105440.0,105430.0,0.5497]
[1737644649537,0.09749697,105440.0,105430.0,0.5497]
[1737644649743,0.09749697,105440.0,105410.0,0.29305899]
[1737644649744,0.19233797,105440.0,105410.0,0.09486]
[1737644649950,0.09749697,105440.0,105410.0,0.094865]
[1737644650189,0.09749697,105440.0,105410.0,0.1422996]
[1737644650364,0.09749697,105440.0,105410.0,0.3320326]
[1737644650544,0.09484,105440.0,105430.0,0.2]
[1737644650967,0.4743175,105450.0,105430.0,0.2]
[1737644651203,0.09484,105440.0,105430.0,0.2]
[1737644651622,0.47682879,105450.0,105430.0,0.2]
[1737644651831,0.24748979,105450.0,105430.0,0.21176196]
[1737644652047,0.0001425,105450.0,105440.0,0.09484]
[1737644652714,0.0001425,105450.0,105440.0,0.09734729]
[1737644653008,0.0001425,105450.0,105440.0,0.76488729]
[1737644653169,0.0001425,105450.0,105440.0,0.64454]
[1737644653366,0.0001425,105450.0,105430.0,0.2]
[1737644653685,0.24748979,105450.0,105430.0,0.2]
[1737644653906,0.34232179,105450.0,105430.0,0.2]
[1737644654118,0.00504083,105470.0,105440.0,0.64704729]
[1737644654320,0.00504083,105470.0,105460.0,0.094822]
[1737644654525,0.0949374,105490.0,105450.0,0.834178]
[1737644654724,0.19215329,105480.0,105450.0,0.644528]
[1737644654852,0.09734729,105480.0,105450.0,0.66475096]
[1737644655097,0.09734729,105480.0,105450.0,0.85441296]
[1737644655295,0.09734729,105480.0,105460.0,0.094821]
[1737644655495,0.18988794,105490.0,105480.0,0.094804]
[1737644655496,0.00029194,105490.0,105480.0,0.094804]
[1737644656131,0.00029194,105490.0,105480.0,0.21515129]
[1737644656340,1e-08,105490.0,105480.0,0.23112289]
[1737644656717,1e-08,105490.0,105470.0,0.094806]
[1737644656903,1e-08,105490.0,105480.0,0.0188925]
[1737644657120,0.2473473,105490.0,105480.0,0.0188925]
[1737644657317,1e-08,105490.0,105480.0,0.1136965]
[1737644657517,1e-08,105490.0,105480.0,0.0188925]
[1737644658799,0.1871423,105490.0,105480.0,0.0188925]
[1737644659104,0.19214229,105490.0,105480.0,0.0188925]
[1737644659670,0.09734729,105490.0,105480.0,0.0188925]
[1737644659862,0.19214229,105490.0,105480.0,0.0188925]
[1737644660275,0.339583,105500.0,105480.0,0.0188925]
[1737644660479,0.094795,105490.0,105480.0,0.0188925]
[1737644660687,0.19214229,105490.0,105480.0,0.0188925]
[1737644660939,0.09734729,105490.0,105480.0,0.0188925]
[1737644661173,0.244786,105500.0,105480.0,0.0188925]
[1737644661397,0.34213329,105500.0,105480.0,0.0188925]
[1737644661612,0.53170729,105500.0,105480.0,0.0188925]
[1737644661812,0.15,105500.0,105480.0,0.0188925]
[1737644662036,0.00869874,105510.0,105480.0,0.2084895]
[1737644662232,0.10604603,105510.0,105480.0,0.4928895]
[1737644662345,0.15,105500.0,105480.0,0.4928895]
[1737644662551,0.0059248,105490.0,105480.0,0.1136965]
[1737644662750,0.0059248,105490.0,105480.0,0.0188925]
[1737644663524,0.10604603,105510.0,105480.0,0.0188925]
[1737644663753,0.0002024,105510.0,105500.0,0.094786]
[1737644663957,0.00033195,105520.0,105500.0,0.0284375]
[1737644664076,0.00033195,105520.0,105510.0,0.094777]
[1737644666121,0.00033195,105520.0,105500.0,0.4075565]
[1737644666324,0.00033195,105520.0,105500.0,0.5023355]
[1737644667226,0.00033195,105520.0,105500.0,0.3127745]
[1737644667427,0.19212529,105510.0,105480.0,0.3032835]
[1737644667728,0.24510495,105520.0,105490.0,0.094794]
[1737644667953,0.09734729,105510.0,105480.0,0.0188925]
[1737644668083,0.11734729,105510.0,105460.0,0.189635]
[1737644668288,0.189582,105500.0,105460.0,0.189632]
[1737644668493,0.189582,105500.0,105460.0,0.28445]
[1737644668494,0.19214329,105490.0,105460.0,0.28445]
[1737644668691,0.00049827,105510.0,105490.0,0.189579]
[1737644668887,0.00033195,105520.0,105510.0,0.094777]
[1737644669147,0.00033195,105520.0,105510.0,0.09527527]
[1737644669277,0.2843865,105550.0,105510.0,0.09527527]
[1737644669278,0.0001425,105550.0,105540.0,0.09475]
[1737644669486,0.0001425,105550.0,105530.0,0.094753]
[1737644669728,0.01135346,105550.0,105540.0,0.09475]
[1737644669927,0.01135346,105550.0,105530.0,0.5497]
[1737644670342,0.01135346,105550.0,105530.0,0.644457]
[1737644670574,0.01135346,105550.0,105530.0,0.833966]
[1737644670705,0.0001425,105550.0,105530.0,0.644457]
[1737644670924,0.28697579,105550.0,105520.0,0.094764]
[1737644671146,0.38172379,105550.0,105540.0,0.01936892]
[1737644671345,0.38172379,105550.0,105510.0,0.00049827]
[1737644671346,0.529018,105540.0,105510.0,0.00049827]
[1737644671547,0.094768,105520.0,105510.0,0.00049827]
[1737644671772,0.09734729,105520.0,105510.0,0.00049827]
[1737644671986,0.19211529,105520.0,105510.0,0.00049827]
[1737644672452,0.34211529,105520.0,105510.0,0.00049827]
[1737644672606,0.34211529,105520.0,105510.0,0.01952406]
[1737644672804,0.24734729,105520.0,105510.0,0.01952406]
[1737644673005,0.09734729,105520.0,105510.0,0.01952406]
[1737644673229,0.189529,105530.0,105510.0,0.01952406]
[1737644673230,0.09476,105530.0,105510.0,0.03095507]
[1737644673435,0.38162929,105530.0,105510.0,0.01952406]
[1737644673639,0.57115729,105530.0,105510.0,0.01952406]
[1737644673797,0.38162929,105530.0,105510.0,0.01952406]
[1737644674071,0.09734729,105530.0,105510.0,0.01952406]
[1737644674318,0.0001425,105550.0,105510.0,0.89341527]
[1737644674319,0.00592311,105520.0,105510.0,0.89341527]
[1737644674538,0.00592311,105520.0,105510.0,0.48406256]
[1737644674714,0.00592311,105520.0,105510.0,0.53406256]
[1737644674924,0.0001425,105550.0,105540.0,0.09475]
[1737644675136,0.0001425,105550.0,105530.0,0.284256]
[1737644675352,0.00887544,105570.0,105560.0,0.094732]
[1737644675516,0.00037887,105570.0,105560.0,0.094732]
[1737644676160,0.004,105580.0,105560.0,0.5497]
[1737644676361,0.0159908,105590.0,105580.0,0.644414]
[1737644676592,0.01614033,105590.0,105580.0,0.79176129]
[1737644676792,0.01614033,105590.0,105580.0,0.7816265]
[1737644676993,0.01614033,105590.0,105580.0,0.8746265]
[1737644677433,0.01614033,105590.0,105580.0,0.8246265]
[1737644677638,0.01614033,105590.0,105580.0,0.8746265]
[1737644678059,0.0001423,105600.0,105590.0,0.644405]
[1737644678257,0.0001423,105600.0,105590.0,0.80408364]
[1737644678419,0.00042579,105620.0,105610.0,0.5497]
[1737644678619,0.00042579,105620.0,105610.0,0.644388]
[1737644678838,0.00042579,105620.0,105610.0,0.76173529]
[1737644679041,0.0001422,105640.0,105630.0,0.64437]
[1737644679245,0.18973471,105680.0,105640.0,0.644361]
[1737644679449,0.09734729,105670.0,105640.0,0.644361]
[1737644679653,0.19198229,105670.0,105640.0,0.283962]
[1737644679904,0.19198229,105670.0,105640.0,0.28398]
[1737644680106,0.40924976,105670.0,105640.0,0.09466]
[1737644680268,0.02799847,105670.0,105640.0,0.95035864]
[1737644680466,0.02799847,105670.0,105650.0,0.094651]
[1737644680803,0.09525109,105680.0,105670.0,0.644334]
[1737644680804,0.00062209,105680.0,105670.0,0.644334]
[1737644680962,0.00062209,105680.0,105670.0,0.74168129]
[1737644681162,0.0158085,105690.0,105680.0,0.094625]
[1737644681407,0.0001422,105700.0,105690.0,0.094616]
[1737644681639,0.0001422,105700.0,105680.0,0.3264475]
[1737644681640,0.0001422,105700.0,105680.0,0.13448621]
[1737644681840,0.0001422,105700.0,105690.0,0.09734729]
[1737644682026,0.0001422,105700.0,105680.0,0.87343321]
[1737644682203,0.1893572,105700.0,105670.0,0.5497]
[1737644682412,0.0001422,105700.0,105680.0,0.09734729]
[1737644682612,0.0001422,105700.0,105690.0,0.56863802]
[1737644682844,0.0001422,105700.0,105690.0,0.66598531]
[1737644683021,0.0001422,105700.0,105690.0,0.76060131]
[1737644683197,0.0001422,105700.0,105690.0,0.66598531]
[1737644683582,0.094589,105720.0,105690.0,0.66598531]
[1737644683710,0.00014924,105720.0,105690.0,0.76060131]
[1737644683920,0.00014924,105720.0,105700.0,0.09734729]
[1737644684402,0.09474524,105720.0,105690.0,0.01893802]
[1737644684602,0.28654429,105710.0,105690.0,0.01893802]
[1737644684794,0.283802,105710.0,105690.0,0.01893802]
[1737644684994,0.15591205,105710.0,105690.0,0.11628531]
[1737644685229,0.00591205,105710.0,105690.0,0.11628531]
[1737644685440,0.094603,105710.0,105690.0,0.01893802]
[1737644685640,0.34195029,105710.0,105690.0,0.01893802]
[1737644685846,0.38114729,105710.0,105690.0,0.01893802]
[1737644686047,0.47575329,105710.0,105690.0,0.01893802]
[1737644686436,0.47575329,105710.0,105650.0,0.259291]
[1737644686437,0.094627,105680.0,105650.0,0.5497]
[1737644686639,0.15,105680.0,105650.0,0.64704729]
[1737644686813,0.094623,105690.0,105650.0,0.93099629]
[1737644687014,0.00591311,105700.0,105670.0,0.30324165]
[1737644687218,0.00591311,105700.0,105690.0,0.5497]
[1737644687422,0.00591311,105700.0,105680.0,0.5497]
[1737644687843,0.2446,105710.0,105680.0,0.5497]
[1737644688046,0.339197,105710.0,105680.0,0.5497]
[1737644688181,0.094607,105700.0,105680.0,0.5497]
[1737644688385,0.58299444,105700.0,105680.0,0.5497]
[1737644688608,0.39378044,105700.0,105680.0,0.5497]
[1737644688810,0.29917344,105700.0,105680.0,0.5497]
[1737644689060,0.39378044,105700.0,105680.0,0.5497]
[1737644689276,0.68035173,105700.0,105670.0,0.01434165]
[1737644689492,0.39378844,105700.0,105670.0,0.01434165]
[1737644689859,0.48839844,105700.0,105670.0,0.01434165]
[1737644690067,0.58300744,105700.0,105670.0,0.01434165]
[1737644690380,0.29917344,105700.0,105670.0,0.39558894]
[1737644690569,0.15859231,105710.0,105680.0,0.74166529]
[1737644690839,0.15859231,105710.0,105680.0,0.5499982]
[1737644690840,0.00591377,105700.0,105680.0,0.5499982]
[1737644691022,0.30508721,105700.0,105680.0,0.5499982]
[1737644691147,0.58891221,105700.0,105680.0,0.5499982]
[1737644691353,0.30508721,105700.0,105680.0,0.5499982]
[1737644691569,0.00591377,105700.0,105680.0,0.5499982]
[1737644691790,0.29917344,105700.0,105680.0,0.5499982]
[1737644692485,0.094616,105690.0,105680.0,0.0002982]
[1737644692688,0.39378144,105700.0,105680.0,0.0002982]
[1737644692895,0.00859231,105710.0,105690.0,0.83626829]
[1737644693069,0.000142,105720.0,105690.0,0.83626829]
[1737644693264,0.00029124,105720.0,105690.0,0.93087629]
[1737644693464,0.00029124,105720.0,105690.0,0.93089029]
[1737644693926,0.39405368,105720.0,105690.0,0.74166229]
[1737644694174,0.00591217,105710.0,105690.0,0.95089329]
[1737644694345,0.00591217,105710.0,105690.0,1.14011529]
[1737644695132,0.00029124,105720.0,105700.0,1.00624629]
[1737644695311,0.0962846,105750.0,105720.0,0.5497]
[1737644695656,0.58567273,105740.0,105700.0,0.66622337]
[1737644695830,0.094593,105720.0,105700.0,0.01917608]
[1737644696030,0.283762,105730.0,105700.0,0.01917608]
[1737644696415,0.283759,105730.0,105700.0,0.01917608]
[1737644696623,0.094583,105730.0,105710.0,0.09734729]
[1737644696833,0.77205644,105740.0,105710.0,0.64704729]
[1737644697007,0.48832344,105740.0,105710.0,0.64704729]
[1737644697211,0.094575,105740.0,105710.0,0.64704729]
[1737644697518,0.0106079,105750.0,105710.0,0.64704729]
[1737644697717,0.0106079,105750.0,105720.0,0.738866]
[1737644697893,0.189099,105770.0,105730.0,0.64704729]
[1737644697894,0.56344734,105760.0,105730.0,0.64704729]
[1737644698329,0.29917344,105760.0,105730.0,0.74162629]
[1737644698498,0.39372944,105760.0,105730.0,0.74162629]
[1737644698678,0.39372944,105760.0,105730.0,0.6655217]
[1737644698679,0.189113,105760.0,105730.0,0.6655217]
[1737644699078,0.094571,105740.0,105730.0,0.56817441]
[1737644699281,0.57019229,105750.0,105730.0,0.56817441]
[1737644699409,0.433675,105760.0,105730.0,0.6655217]
[1737644699612,0.622791,105760.0,105730.0,0.6655217]
[1737644699813,0.92475173,105760.0,105730.0,0.56817441]
[1737644700018,0.094562,105750.0,105730.0,0.56817441]
[1737644700238,0.29917344,105740.0,105730.0,0.01847441]
[1737644700489,0.00870658,105770.0,105730.0,0.12712784]
[1737644700689,0.00056656,105780.0,105760.0,0.02]
[1737644700823,0.00056656,105780.0,105770.0,0.09734729]
[1737644701023,0.00056656,105780.0,105760.0,0.00049738]
[1737644701226,0.00056656,105780.0,105760.0,0.19239667]
[1737644701434,0.00056656,105780.0,105760.0,0.09784467]
[1737644701635,0.09510356,105780.0,105760.0,0.00049738]
[1737644701836,0.09510356,105780.0,105740.0,0.398263]
[1737644702043,0.09461481,105740.0,105730.0,0.189146]
[1737644702213,0.09461481,105740.0,105730.0,0.38107029]
[1737644702452,0.09461481,105740.0,105730.0,0.47407029]
[1737644702636,0.00056656,105780.0,105760.0,0.16904462]
[1737644702833,0.00056656,105780.0,105770.0,0.24189129]